fUSD/lending_fUSD_20240301
["ID","MTS","AMOUNT","RATE_DAILY","PERIOD"]
[315979351,1709313040026,-2786.5,0.00022027,2]
[315979353,1709313040035,-632.98,0.00022027,2]
[315979355,1709313040045,-500.0,0.00022027,2]
[315979357,1709313040054,-500.0,0.00022027,2]
[315979359,1709313040064,-500.0,0.00022027,2]
[315979361,1709313040073,-417.49252424,0.00022027,2]
[315979363,1709313040082,-518.19,0.00022027,2]
[315979365,1709313040091,-2390.84,0.00022027,2]
[315979367,1709313040100,-2619.48,0.00022027,2]
[315979369,1709313040110,-565.4,0.00022027,2]
[315979371,1709313040119,-641.57,0.00022027,2]
[315979373,1709313040127,-534.56,0.00022027,2]
[315979375,1709313040136,-500.0,0.00022027,2]
[315979377,1709313040145,-500.0,0.00022027,2]
[315979379,1709313040155,-500.0,0.00022027,2]
[315979381,1709313040164,-1522.64,0.00022027,2]
[315979383,1709313040173,-500.0,0.00022027,2]
[315979385,1709313040182,-500.0,0.00022027,2]
[315979387,1709313040191,-1008.17,0.00022027,2]
[315979389,1709313040201,-500.0,0.00022027,2]
[315979391,1709313040210,-991.41,0.00022027,2]
[315979393,1709313040219,-500.0,0.00022027,2]
[315979395,1709313040228,-500.0,0.00022027,2]
[315979397,1709313040237,-500.0,0.00022027,2]
[315979399,1709313040246,-158.47673049,0.00022036,2]
[315979401,1709313040255,-188.1174827,0.00022036,2]
[315979403,1709313040264,-192.66,0.00022046,2]
[315979405,1709313040273,-150.03,0.00022074,2]
[315979407,1709313040282,-13031.32894394,0.00022074,2]
[315979409,1709313040292,-640.00720525,0.00022098,2]
[315979411,1709313040302,-7336.69798414,0.00022098,2]
[315979413,1709313040311,-1000.0,0.000221,2]
[315979415,1709313040320,-1000.0,0.000221,2]
[315979417,1709313040330,-2500.0,0.000221,2]
[315979419,1709313040339,-500.0,0.000221,2]
[315979421,1709313040348,-2674.32166457,0.00022134,2]
[315979423,1709313040358,-1465.86590141,0.00022134,2]
[315979425,1709313040366,-497.29447856,0.00022134,2]
[315979427,1709313040375,-177485.65719219,0.00022136,4]
[315979463,1709313040697,-399.2023011,0.00022136,4]
[315979465,1709313040709,-406.40638158,0.00022136,4]
[315979468,1709313040721,-690.8245438,0.00022136,4]
[315979470,1709313040733,-380.337503,0.00022136,4]
[315979473,1709313040748,-1616.75208401,0.00022136,4]
[315979475,1709313040759,-9063.21597719,0.00022136,4]
[315979477,1709313040771,-6590.55313851,0.00022136,4]
[315979570,1709313041725,-200.0,0.00020832,2]
[315979572,1709313041734,-500.0,0.00021917,2]
[315979575,1709313041744,-948.23,0.00021917,2]
[315979577,1709313041754,-151.0,0.00021917,2]
[315979579,1709313041764,-500.0,0.00022027,2]
[315979580,1709313041774,-392.52784893,0.00022027,2]
[315979583,1709313041786,-555.70215107,0.00022027,2]
[315979585,1709313041795,-1605.10564919,0.00022114,2]
[315979587,1709313041805,-1834.11263142,0.00022136,4]
[315979589,1709313041817,-225.82268314,0.00022136,2]
[315979591,1709313041826,-500.0,0.00022136,2]
[315979593,1709313041836,-500.0,0.00022136,2]
[315979595,1709313041846,-500.0,0.00022136,2]
[315979597,1709313041856,-500.0,0.00022136,2]
[315979599,1709313041865,-500.0,0.00022136,2]
[315979601,1709313041874,-500.0,0.00022136,2]
[315979603,1709313041884,-500.0,0.00022136,2]
[315979605,1709313041894,-500.0,0.00022136,2]
[315979607,1709313041903,-500.0,0.00022136,2]
[315979609,1709313041914,-500.0,0.00022136,2]
[315979611,1709313041925,-500.0,0.00022136,2]
[315979613,1709313041934,-500.0,0.00022136,2]
[315979615,1709313041944,-500.0,0.00022136,2]
[315979617,1709313041954,-500.0,0.00022136,2]
[315979619,1709313041964,-500.0,0.00022136,2]
[315979621,1709313041974,-500.0,0.00022136,2]
[315979624,1709313041983,-500.0,0.00022136,2]
[315979626,1709313041993,-500.0,0.00022136,2]
[315979628,1709313042002,-500.0,0.00022136,2]
[315979630,1709313042012,-500.0,0.00022136,2]
[315979632,1709313042022,-500.0,0.00022136,2]
[315979634,1709313042031,-288.73,0.00022136,2]
[315979636,1709313042040,-500.0,0.00022136,2]
[315979638,1709313042050,-500.0,0.00022136,2]
[315979640,1709313042059,-500.0,0.00022136,2]
[315979642,1709313042069,-500.0,0.00022136,2]
[315979644,1709313042080,-500.0,0.00022136,2]
[315979646,1709313042090,-500.0,0.00022136,2]
[315979648,1709313042099,-500.0,0.00022136,2]
[315979650,1709313042109,-500.0,0.00022136,2]
[315979652,1709313042118,-500.0,0.00022136,2]
[315979654,1709313042128,-500.0,0.00022136,2]
[315979656,1709313042139,-761.8,0.00022136,2]
[315979658,1709313042149,-500.0,0.00022136,2]
[315979660,1709313042159,-500.0,0.00022136,2]
[315979662,1709313042169,-500.0,0.00022136,2]
[315979664,1709313042181,-500.0,0.00022136,2]
[315979666,1709313042191,-500.0,0.00022136,2]
[315979668,1709313042201,-500.0,0.00022136,2]
[315979670,1709313042210,-500.0,0.00022136,2]
[315979672,1709313042221,-500.0,0.00022136,2]
[315979674,1709313042232,-500.0,0.00022136,2]
[315979676,1709313042242,-500.0,0.00022136,2]
[315979678,1709313042251,-500.0,0.00022136,2]
[315979680,1709313042261,-500.0,0.00022136,2]
[315979683,1709313042270,-500.0,0.00022136,2]
[315979685,1709313042279,-500.0,0.00022136,2]
[315979687,1709313042289,-500.0,0.00022136,2]
[315979689,1709313042298,-500.0,0.00022136,2]
[315979691,1709313042308,-500.0,0.00022136,2]
[315979694,1709313042319,-500.0,0.00022136,2]
[315979696,1709313042329,-500.0,0.00022136,2]
[315979699,1709313042338,-159.24,0.00022136,2]
[315979702,1709313042348,-500.0,0.00022136,2]
[315979704,1709313042358,-810.67,0.00022136,2]
[315979706,1709313042367,-500.0,0.00022136,2]
[315979708,1709313042377,-500.0,0.00022136,2]
[315979710,1709313042387,-500.0,0.00022136,2]
[315979712,1709313042396,-500.0,0.00022136,2]
[315979714,1709313042406,-500.0,0.00022136,2]
[315979716,1709313042415,-500.0,0.00022136,2]
[315979718,1709313042425,-601.54158114,0.00022136,2]
[315979721,1709313042435,-500.0,0.00022136,2]
[315979724,1709313042446,-500.0,0.00022136,2]
[315979727,1709313042455,-280.00731376,0.00022136,2]
[315979732,1709313042470,-219.99268624,0.00022136,2]
[315979734,1709313042480,-500.0,0.00022136,2]
[315979736,1709313042492,-500.0,0.00022136,2]
[315979738,1709313042502,-198.18372889,0.00022136,2]
[315979741,1709313042511,-500.0,0.00022136,2]
[315979744,1709313042522,-500.0,0.00022136,2]
[315979747,1709313042532,-500.0,0.00022136,2]
[315979750,1709313042542,-500.0,0.00022136,2]
[315979752,1709313042551,-500.0,0.00022136,2]
[315979754,1709313042561,-500.0,0.00022136,2]
[315979756,1709313042573,-500.0,0.00022136,2]
[315979758,1709313042583,-595.49,0.00022136,2]
[315979760,1709313042593,-500.0,0.00022136,2]
[315979763,1709313042603,-496.54795153,0.00022136,2]
[315979765,1709313042613,-500.0,0.00022136,2]
[315979767,1709313042622,-724.25,0.00022136,2]
[315979769,1709313042633,-510.85,0.00022136,2]
[315979771,1709313042642,-500.0,0.00022136,2]
[315979773,1709313042651,-538.93,0.00022136,2]
[315979775,1709313042661,-500.0,0.00022136,2]
[315979777,1709313042671,-546.67676063,0.00022136,2]
[315979779,1709313042680,-286.72,0.00022136,2]
[315979781,1709313042690,-500.0,0.00022136,2]
[315979783,1709313042699,-729.96,0.00022136,2]
[315979785,1709313042709,-500.0,0.00022136,2]
[315979787,1709313042718,-500.0,0.00022136,2]
[315979789,1709313042727,-500.0,0.00022136,2]
[315979791,1709313042737,-775.35,0.00022136,2]
[315979793,1709313042746,-500.0,0.00022136,2]
[315979795,1709313042756,-474.40791187,0.00022136,2]
[315979798,1709313042769,-25.59208813,0.00022136,2]
[315979800,1709313042778,-500.0,0.00022136,2]
[315979802,1709313042788,-500.0,0.00022136,2]
[315979804,1709313042797,-500.0,0.00022136,2]
[315979805,1709313042806,-500.0,0.00022136,2]
[315979806,1709313042816,-500.0,0.00022136,2]
[315979807,1709313042825,-500.0,0.00022136,2]
[315979808,1709313042834,-160.11,0.00022136,2]
[315979809,1709313042843,-500.0,0.00022136,2]
[315979810,1709313042852,-215.17316982,0.00022136,2]
[315979811,1709313042865,-491.33683018,0.00022136,2]
[315979813,1709313042875,-500.0,0.00022136,2]
[315979815,1709313042884,-500.0,0.00022136,2]
[315979817,1709313042893,-500.0,0.00022136,2]
[315979819,1709313042903,-500.0,0.00022136,2]
[315979821,1709313042912,-500.0,0.00022136,2]
[315979823,1709313042922,-295.93956049,0.00022136,2]
[315979825,1709313042934,-204.83043951,0.00022136,2]
[315979827,1709313042943,-500.0,0.00022136,2]
[315979829,1709313042953,-500.0,0.00022136,2]
[315979831,1709313042963,-500.0,0.00022136,2]
[315979833,1709313042973,-500.0,0.00022136,2]
[315979835,1709313042983,-1007.71,0.00022136,2]
[315979837,1709313042994,-370.45723114,0.00022136,2]
[315979840,1709313043007,-129.54276886,0.00022136,2]
[315979842,1709313043017,-500.0,0.00022136,2]
[315979844,1709313043028,-637.57,0.00022136,2]
[315979846,1709313043038,-828.87,0.00022136,2]
[315979848,1709313043048,-500.0,0.00022136,2]
[315979850,1709313043058,-500.0,0.00022136,2]
[315979852,1709313043069,-568.28,0.00022136,2]
[315979854,1709313043078,-500.0,0.00022136,2]
[315979856,1709313043088,-408.29,0.00022136,2]
[315979858,1709313043098,-500.0,0.00022136,2]
[315979860,1709313043108,-500.0,0.00022136,2]
[315979863,1709313043118,-500.0,0.00022136,2]
[315979865,1709313043128,-500.0,0.00022136,2]
[315979867,1709313043138,-500.0,0.00022136,2]
[315979869,1709313043148,-500.0,0.00022136,2]
[315979871,1709313043157,-500.0,0.00022136,2]
[315979873,1709313043167,-500.0,0.00022136,2]
[315979875,1709313043177,-500.0,0.00022136,2]
[315979877,1709313043187,-500.0,0.00022136,2]
[315979879,1709313043197,-500.0,0.00022136,2]
[315979881,1709313043207,-544.87,0.00022136,2]
[315979883,1709313043217,-500.0,0.00022136,2]
[315979885,1709313043227,-500.0,0.00022136,2]
[315979887,1709313043237,-500.0,0.00022136,2]
[315979889,1709313043247,-649.08998259,0.00022136,2]
[315979891,1709313043257,-500.0,0.00022136,2]
[315979893,1709313043266,-500.0,0.00022136,2]
[315979895,1709313043276,-500.0,0.00022136,2]
[315979897,1709313043286,-500.0,0.00022136,2]
[315979898,1709313043295,-500.0,0.00022136,2]
[315979899,1709313043304,-500.0,0.00022136,2]
[315979900,1709313043347,-500.0,0.00022136,2]
[315979902,1709313043357,-500.0,0.00022136,2]
[315979904,1709313043367,-500.0,0.00022136,2]
[315979907,1709313043377,-500.0,0.00022136,2]
[315979909,1709313043386,-500.0,0.00022136,2]
[315979911,1709313043396,-500.0,0.00022136,2]
[315979913,1709313043406,-500.0,0.00022136,2]
[315979915,1709313043416,-500.0,0.00022136,2]
[315979917,1709313043426,-500.0,0.00022136,2]
[315979919,1709313043435,-175.75784208,0.00022136,2]
[315979921,1709313043451,-324.24215792,0.00022136,2]
[315979923,1709313043461,-500.0,0.00022136,2]
[315979925,1709313043470,-500.0,0.00022136,2]
[315979927,1709313043480,-500.0,0.00022136,2]
[315979929,1709313043490,-500.0,0.00022136,2]
[315979931,1709313043499,-500.0,0.00022136,2]
[315979932,1709313043509,-500.0,0.00022136,2]
[315979933,1709313043519,-2613.97,0.00022136,2]
[315979934,1709313043531,-500.0,0.00022136,2]
[315979935,1709313043541,-500.0,0.00022136,2]
[315979936,1709313043550,-500.0,0.00022136,2]
[315979937,1709313043560,-2071.79,0.00022136,2]
[315979938,1709313043571,-500.0,0.00022136,2]
[315979939,1709313043580,-151.5712282,0.00022136,2]
[315979951,1709313043700,-131.46078422,0.00022136,2]
[315979954,1709313043710,-500.0,0.00022136,2]
[315979956,1709313043720,-500.0,0.00022136,2]
[315979958,1709313043730,-397.70760478,0.00022136,2]
[315979992,1709313044045,-102.29239522,0.00022136,2]
[315979994,1709313044055,-500.0,0.00022136,2]
[315979996,1709313044065,-500.0,0.00022136,2]
[315979998,1709313044074,-500.0,0.00022136,2]
[315980000,1709313044084,-541.62,0.00022136,2]
[315980002,1709313044094,-893.72,0.00022136,2]
[315980004,1709313044103,-500.0,0.00022136,2]
[315980006,1709313044112,-853.7,0.00022136,2]
[315980008,1709313044122,-500.0,0.00022136,2]
[315980011,1709313044131,-297.04012977,0.00022136,2]
[315980013,1709313044140,-500.0,0.00022136,2]
[315980015,1709313044150,-500.0,0.00022136,2]
[315980017,1709313044159,-500.0,0.00022136,2]
[315980019,1709313044168,-500.0,0.00022136,2]
[315980021,1709313044177,-500.0,0.00022136,2]
[315980023,1709313044186,-1497.68,0.00022136,2]
[315980025,1709313044196,-500.0,0.00022136,2]
[315980027,1709313044205,-766.77,0.00022136,2]
[315980029,1709313044214,-500.0,0.00022136,2]
[315980031,1709313044223,-500.0,0.00022136,2]
[315980033,1709313044233,-510.34,0.00022136,2]
[315980035,1709313044241,-8468.17,0.00022136,2]
[315980037,1709313044251,-691.73,0.00022136,2]
[315980039,1709313044261,-1071.82,0.00022136,2]
[315980041,1709313044269,-500.0,0.00022136,2]
[315980043,1709313044279,-500.0,0.00022136,2]
[315980045,1709313044288,-500.0,0.00022136,2]
[315980047,1709313044297,-500.0,0.00022136,2]
[315980049,1709313044309,-500.0,0.00022136,2]
[315980051,1709313044319,-909.47,0.00022136,2]
[315980053,1709313044328,-500.0,0.00022136,2]
[315980055,1709313044339,-500.0,0.00022136,2]
[315980057,1709313044348,-540.99,0.00022136,2]
[315980059,1709313044358,-578.01,0.00022136,2]
[315980061,1709313044367,-500.0,0.00022136,2]
[315980063,1709313044377,-500.0,0.00022136,2]
[315980065,1709313044386,-775.37,0.00022136,2]
[315980067,1709313044395,-500.0,0.00022136,2]
[315980069,1709313044404,-507.91,0.00022136,2]
[315980071,1709313044413,-500.0,0.00022136,2]
[315980073,1709313044422,-692.36,0.00022136,2]
[315980075,1709313044432,-612.03,0.00022136,2]
[315980077,1709313044443,-518.77,0.00022136,2]
[315980079,1709313044451,-500.0,0.00022136,2]
[315980081,1709313044460,-500.0,0.00022136,2]
[315980083,1709313044469,-500.0,0.00022136,2]
[315980085,1709313044480,-500.0,0.00022136,2]
[315980087,1709313044489,-672.88,0.00022136,2]
[315980089,1709313044498,-500.0,0.00022136,2]
[315980091,1709313044508,-500.0,0.00022136,2]
[315980093,1709313044519,-640.14345161,0.00022136,2]
[315980095,1709313044529,-500.0,0.00022136,2]
[315980097,1709313044538,-500.0,0.00022136,2]
[315980098,1709313044548,-500.0,0.00022136,2]
[315980099,1709313044559,-994.95,0.00022136,2]
[315980100,1709313044570,-500.0,0.00022136,2]
[315980101,1709313044579,-2408.36,0.00022136,2]
[315980102,1709313044589,-500.0,0.00022136,2]
[315980103,1709313044597,-500.0,0.00022136,2]
[315980104,1709313044606,-542.98,0.00022136,2]
[315980105,1709313044615,-500.0,0.00022136,2]
[315980107,1709313044625,-500.0,0.00022136,2]
[315980109,1709313044634,-500.0,0.00022136,2]
[315980111,1709313044644,-500.0,0.00022136,2]
[315980113,1709313044653,-500.0,0.00022136,2]
[315980115,1709313044664,-500.0,0.00022136,2]
[315980117,1709313044673,-2370.09,0.00022136,2]
[315980119,1709313044683,-1318.46,0.00022136,2]
[315980122,1709313044694,-500.0,0.00022136,2]
[315980124,1709313044706,-500.0,0.00022136,2]
[315980126,1709313044716,-189.86722964,0.00022136,2]
[315980191,1709313045289,-308.382,0.00021917,2]
[315980196,1709313045301,-191.618,0.00021917,2]
[315980199,1709313045310,-500.0,0.00021917,2]
[315980202,1709313045321,-499.96808954,0.00021917,2]
[315980205,1709313045333,-505.21142034,0.00021917,2]
[315980210,1709313045348,-455.20087013,0.00021917,2]
[315980213,1709313045360,-835.71961999,0.00021917,2]
[315980216,1709313045370,-500.0,0.00022027,2]
[315980219,1709313045379,-500.0,0.00022027,2]
[315980222,1709313045388,-2296.1,0.00022027,2]
[315980225,1709313045398,-310.13277036,0.00022136,2]
[315980228,1709313045407,-500.0,0.00022136,2]
[315980231,1709313045416,-500.0,0.00022136,2]
[315980234,1709313045426,-500.0,0.00022136,2]
[315980237,1709313045435,-500.0,0.00022136,2]
[315980240,1709313045447,-500.0,0.00022136,2]
[315980244,1709313045456,-500.0,0.00022136,2]
[315980246,1709313045465,-500.0,0.00022136,2]
[315980250,1709313045475,-500.0,0.00022136,2]
[315980253,1709313045484,-588.58,0.00022136,2]
[315980255,1709313045493,-500.0,0.00022136,2]
[315980257,1709313045503,-500.0,0.00022136,2]
[315980259,1709313045512,-500.0,0.00022136,2]
[315980261,1709313045522,-500.0,0.00022136,2]
[315980264,1709313045531,-552.13,0.00022136,2]
[315980266,1709313045540,-500.0,0.00022136,2]
[315980269,1709313045550,-640.57,0.00022136,2]
[315980272,1709313045559,-500.0,0.00022136,2]
[315980275,1709313045569,-500.0,0.00022136,2]
[315980278,1709313045578,-438.03502261,0.00022136,2]
[315980281,1709313045589,-500.0,0.00022136,2]
[315980284,1709313045597,-860.08,0.00022136,2]
[315980287,1709313045606,-2345.93,0.00022136,2]
[315980290,1709313045616,-500.0,0.00022136,2]
[315980293,1709313045624,-500.0,0.00022136,2]
[315980296,1709313045633,-500.0,0.00022136,2]
[315980299,1709313045642,-500.0,0.00022136,2]
[315980301,1709313045652,-132.72258704,0.00022136,2]
[315980305,1709313045665,-367.27741296,0.00022136,2]
[315980307,1709313045674,-222.28022158,0.00022136,2]
[315980309,1709313045685,-277.71977842,0.00022136,2]
[315980311,1709313045695,-500.0,0.00022136,2]
[315980313,1709313045704,-500.0,0.00022136,2]
[315980315,1709313045713,-500.0,0.00022136,2]
[315980318,1709313045723,-500.0,0.00022136,2]
[315980321,1709313045743,-500.0,0.00022136,2]
[315980323,1709313045753,-606.42128341,0.00022136,2]
[315980325,1709313045763,-500.0,0.00022136,2]
[315980327,1709313045772,-814.95,0.00022136,2]
[315980329,1709313045782,-2995.59,0.00022136,2]
[315980331,1709313045791,-2870.73,0.00022136,2]
[315980333,1709313045801,-648.38,0.00022136,2]
[315980335,1709313045810,-958.12,0.00022136,2]
[315980337,1709313045820,-500.0,0.00022136,2]
[315980339,1709313045829,-500.0,0.00022136,2]
[315980341,1709313045838,-1794.37326101,0.00022136,2]
[315980359,1709313045987,-1313.31673899,0.00022136,2]
[315980361,1709313045996,-2140.43,0.00022136,2]
[315980363,1709313046006,-1391.12,0.00022136,2]
[315980365,1709313046016,-500.0,0.00022136,2]
[315980367,1709313046025,-500.0,0.00022136,2]
[315980369,1709313046035,-525.27,0.00022136,2]
[315980371,1709313046044,-965.88,0.00022136,2]
[315980373,1709313046054,-1637.41,0.00022136,2]
[315980375,1709313046063,-500.0,0.00022136,2]
[315980377,1709313046074,-500.0,0.00022136,2]
[315980379,1709313046084,-2278.89,0.00022136,2]
[315980381,1709313046093,-2786.5,0.00022136,2]
[315980383,1709313046103,-632.98,0.00022136,2]
[315980385,1709313046112,-500.0,0.00022136,2]
[315980387,1709313046122,-500.0,0.00022136,2]
[315980389,1709313046131,-500.0,0.00022136,2]
[315980391,1709313046141,-518.19,0.00022136,2]
[315980393,1709313046150,-2390.84,0.00022136,2]
[315980395,1709313046160,-2619.48,0.00022136,2]
[315980396,1709313046173,-565.4,0.00022136,2]
[315980397,1709313046183,-641.57,0.00022136,2]
[315980398,1709313046193,-534.56,0.00022136,2]
[315980399,1709313046203,-500.0,0.00022136,2]
[315980400,1709313046214,-1522.64,0.00022136,2]
[315980401,1709313046224,-500.0,0.00022136,2]
[315980403,1709313046234,-500.0,0.00022136,2]
[315980405,1709313046243,-500.0,0.00022136,2]
[315980407,1709313046253,-1008.17,0.00022136,2]
[315980409,1709313046262,-500.0,0.00022136,2]
[315980411,1709313046272,-991.41,0.00022136,2]
[315980428,1709313046409,-500.0,0.00022136,2]
[315980430,1709313046419,-500.0,0.00022136,2]
[315980432,1709313046432,-500.0,0.00022136,2]
[315980434,1709313046441,-948.23,0.00022136,2]
[315980436,1709313046451,-500.0,0.00022136,2]
[315980438,1709313046460,-500.0,0.00022136,2]
[315980440,1709313046470,-2296.1,0.00022136,2]
[315980442,1709313046479,-13031.32894387,0.00022149,2]
[315980444,1709313046489,-842.2,0.00022173,2]
[315980446,1709313046498,-151.0,0.00022174,7]
[315980448,1709313046507,-63217.35733257,0.00022174,2]
[315980450,1709313046522,-317.57106842,0.00022174,2]
[315980477,1709313046766,-301.50923477,0.00022034,2]
[315980479,1709313046776,-283.5181722,0.00022174,2]
[315980482,1709313046796,-894.63022243,0.00022174,2]
[315980485,1709313046811,-58716.23924968,0.00022174,2]
[315980487,1709313046820,-9781.8787471,0.00022174,2]
[315980489,1709313046830,-151.0,0.00022174,7]
[315980491,1709313046839,-341.33681274,0.00022174,2]
[315980494,1709313046864,-5978.07414565,0.00022174,2]
[315980496,1709313046875,-337.5501158,0.00022174,2]
[315980499,1709313046887,-1511.39486568,0.00022174,2]
[315980501,1709313046898,-1236.22977168,0.00022174,2]
[315980544,1709313047448,-153.0,0.00020451,2]
[315980545,1709313047464,-153.0,0.00021136,2]
[315980547,1709313047473,-394.84632191,0.00021917,2]
[315980549,1709313047488,-555.64367809,0.00021917,2]
[315980551,1709313047498,-500.0,0.00021917,2]
[315980553,1709313047509,-2192.9,0.00021917,2]
[315980555,1709313047518,-950.49,0.00022027,2]
[315980557,1709313047528,-500.0,0.00022027,2]
[315980559,1709313047538,-950.49,0.00022136,2]
[315980560,1709313047547,-5293.66442095,0.00022174,2]
[315980562,1709313047557,-5635.9422683,0.00022174,2]
[315980564,1709313047566,-151.0,0.00022174,7]
[315980566,1709313047577,-14068.537876,0.00022174,2]
[315980569,1709313047597,-6080.2441756,0.00022174,2]
[315980571,1709313047608,-151.282437,0.00022174,7]
[315980572,1709313047618,-151.0,0.00022174,7]
[315980574,1709313047629,-151.0,0.00022174,7]
[315980576,1709313047638,-151.0,0.00022174,7]
[315980578,1709313047647,-842.2,0.00022181,2]
[315980580,1709313047657,-266.63534701,0.00022182,2]
[315980582,1709313047666,-4647.9144802,0.00022182,2]
[315980583,1709313047676,-151.0,0.00022182,7]
[315980585,1709313047685,-817.35,0.00022182,2]
[315980587,1709313047695,-842.2,0.00022182,2]
[315980589,1709313047705,-842.2,0.00022182,2]
[315980591,1709313047714,-14955.49816158,0.00022183,2]
[315980593,1709313047724,-14095.39217856,0.00022183,2]
[315980594,1709313047734,-50000.0,0.00022183,2]
[315980596,1709313047743,-8832.93542077,0.00022183,2]
[315980598,1709313047753,-1466.17350424,0.00022183,2]
[315980600,1709313047762,-331.15813948,0.00022183,7]
[315980602,1709313047771,-155.0,0.00022183,2]
[315980603,1709313047780,-20659.63661834,0.00022183,2]
[315980605,1709313047790,-2000.0,0.00022183,2]
[315980607,1709313047799,-200.0,0.00022183,2]
[315980609,1709313047809,-15534.35106461,0.00022183,2]
[315980611,1709313047818,-151.0,0.00022183,7]
[315980613,1709313047828,-50000.0,0.00022183,2]
[315980615,1709313047838,-2000.0,0.00022183,2]
[315980617,1709313047847,-200.0,0.00022183,2]
[315980619,1709313047857,-293.039654,0.00022183,7]
[315980621,1709313047866,-8951.7659928,0.00022183,2]
[315980623,1709313047875,-200000.0,0.00022183,2]
[315980625,1709313047885,-151.0,0.00022183,7]
[315980626,1709313047895,-151.0,0.00022183,7]
[315980627,1709313047905,-4000.0,0.00022183,2]
[315980628,1709313047915,-163.13,0.00022187,2]
[315980629,1709313047924,-150.03,0.00022189,2]
[315980630,1709313047935,-1000.0,0.000222,2]
[315980631,1709313047945,-500.0,0.000222,2]
[315980632,1709313047954,-365.10826131,0.00022201,2]
[315980633,1709313047963,-13031.32894387,0.00022224,2]
[315980634,1709313047973,-329.02441357,0.00022231,2]
[315980635,1709313047982,-842.2,0.00022245,2]
[315980636,1709313047992,-4882.46790923,0.00022246,2]
[315980638,1709313048001,-764.5,0.00022246,2]
[315980640,1709313048011,-500.0,0.00022246,2]
[315980642,1709313048020,-500.0,0.00022246,2]
[315980644,1709313048030,-500.0,0.00022246,2]
[315980646,1709313048039,-500.0,0.00022246,2]
[315980648,1709313048049,-531.10134087,0.00022246,2]
[315980650,1709313048059,-152.47471709,0.00022246,2]
[315980652,1709313048069,-500.0,0.00022246,2]
[315980654,1709313048079,-500.0,0.00022246,2]
[315980656,1709313048088,-500.0,0.00022246,2]
[315980658,1709313048098,-500.0,0.00022246,2]
[315980660,1709313048107,-500.0,0.00022246,2]
[315980662,1709313048117,-528.59934104,0.00022246,2]
[315980664,1709313048126,-500.0,0.00022246,2]
[315980666,1709313048135,-500.0,0.00022246,2]
[315980668,1709313048144,-500.0,0.00022246,2]
[315980670,1709313048154,-556.07752899,0.00022246,2]
[315980672,1709313048164,-500.0,0.00022246,2]
[315980675,1709313048174,-500.0,0.00022246,2]
[315980677,1709313048184,-500.0,0.00022246,2]
[315980679,1709313048194,-500.0,0.00022246,2]
[315980681,1709313048204,-500.0,0.00022246,2]
[315980683,1709313048213,-465.53419408,0.00022246,2]
[315980685,1709313048222,-500.0,0.00022246,2]
[315980687,1709313048231,-500.0,0.00022246,2]
[315980689,1709313048240,-500.0,0.00022246,2]
[315980691,1709313048249,-500.0,0.00022246,2]
[315980693,1709313048259,-500.0,0.00022246,2]
[315980695,1709313048268,-500.0,0.00022246,2]
[315980697,1709313048278,-500.0,0.00022246,2]
[315980699,1709313048287,-500.0,0.00022246,2]